[Event "Prague Open 2025"]
[Site "Prague"]
[Date "2025.01.15"]
[Round "7.11"]
[White "Jaskolka, Tomasz"]
[Black "Karaivanova, Petya"]
[Result "1-0"]
[Annotator "TA"]
[ECO "A13"]
[WhiteElo "2210"]
[BlackElo "2035"]
[PlyCount "135"]
[EventDate "2025.01.07"]
[EventType "swiss"]
[EventCountry "CZE"]
[SourceTitle "playchess.com"]
[Source "ChessBase"]
[SourceQuality "1"]
[TimeControl "40/5400+30:1800+30"]

{[%evp 16,135,6,0,0,5,2,-11,-13,-20,-14,-19,-6,-14,0,0,0,0,0,-3,0,0,0,20,20,22,16,0,0,0,16,4,20,25,33,20,37,10,28,21,47,9,43,25,49,35,35,30,23,37,193,212,213,204,603,287,283,273,268,271,317,304,446,425,475,464,467,330,298,95,95,95,92,92,95,95,107,75,112,100,100,100,108,87,89,57,57,65,105,104,104,0,104,0,110,110,110,110,711,700,697,621,1665,1607,1581,1271,5110,5110,5102,5065,6087,6075,5283,5423,29976,4134,29980,29981,29981,29982,29982,29983]} 1. Nf3 {[%emt 0:00:08]} Nf6 {[%emt 0:00:05]} 2. c4 {[%emt 0:00:18]} e6 {[%emt 0:00:05]} 3. g3 {[%emt 0:00:05]} d5 {[%emt 0:00:03]} 4. Bg2 {[%emt 0:00:04]} dxc4 {[%emt 0:02:29]} 5. Qa4+ {[%emt 0:00:22]} Nbd7 {[%emt 0:00:09]} 6. Qxc4 {[%emt 0:00:44]} c5 {[%emt 0:00:59]} 7. O-O {[%emt 0:02:52]} b6 {[%emt 0:02:32]} 8. b3 {[%emt 0:10:11]} Bb7 {[%emt 0:01:55]} 9. Bb2 {[%emt 0:00:05]} Be7 {[%emt 0:01:14]} 10. Qc2 {[%emt 0:01:35]} O-O {[%emt 0:01:57]} 11. Nc3 {[%emt 0:00:03]} Rc8 {[%emt 0:01:20]} 12. Rac1 {[%emt 0:05:18]} a6 {[%emt 0:04:06]} 13. Rfd1 {[%emt 0:00:50]} Qc7 {[%emt 0:01:01]} 14. Qb1 {[%emt 0:03:29]} Qb8 {[%emt 0:00:56]} 15. Qa1 {[%emt 0:02:49]} Qa8 {[%emt 0:08:05]} 16. d3 {[%emt 0:02:40]} Rfd8 {[%emt 0:00:15]} 17. h3 {[%emt 0:08:37]} b5 {[%emt 0:00:35][%cal Od7e5,Bb6b5,Bb5b4][%mdl 32]} 18. a4 {[%emt 0:03:20]} b4 {[%emt 0:10:00]} 19. Nb1 $1 {[%emt 0:00:39]} a5 {[%emt 0:02:02]} 20. Nbd2 {[%emt 0:00:19]} Nb6 {[%emt 0:00:04]} 21. Ne1 {[%emt 0:07:40]} Bxg2 {[%emt 0:09:10]} 22. Nxg2 {[%emt 0:00:06]} Ne8 {[%emt 0:00:17]} 23. Ne3 {[%emt 0:02:21]} Bf6 {[%emt 0:07:28]} 24. Ndc4 {[%emt 0:02:31]} Nxc4 {[%emt 0:06:03]} 25. Rxc4 {[%emt 0:05:05]} Qa7 {[%emt 0:06:18]} 26. Rdc1 {[%emt 0:04:08]} Rc7 {[%emt 0:02:05]} 27. Be5 {[%emt 0:16:07]} Rcc8 {[%emt 0:04:21] Black is weak on the light squares} 28. Rg4 {[%emt 0:02:02]} Kf8 {[%emt 0:03:20]} 29. Nc4 {[%emt 0:03:53]} Bxe5 {[%emt 0:01:18]} 30. Qxe5 {[%emt 0:01:06]} Rd5 {[%emt 0:03:23]} 31. Qb2 {[%emt 0:02:16]} Nf6 {[%emt 0:01:04]} 32. Rf4 {[%emt 0:00:33]} Rh5 $2 {[%emt 0:02:59]} ({Better is} 32... Nd7 $14) 33. Rxf6 $1 $18 {[%emt 0:04:42]} gxf6 {[%emt 0:01:12]} 34. Qxf6 {[%emt 0:00:03]} Qb8 $2 {[%emt 0:04:42] [#]} (34... Qc7 35. g4 Rd5 36. Nxa5 Qe5 37. Qxe5 Rxe5) 35. Nb6 {[%emt 0:02:46]} Qxb6 {[%emt 0:01:35]} 36. Qh8+ {[%emt 0:00:04]} Ke7 {[%emt 0:00:03]} 37. Qxc8 {[%emt 0:00:04][%mdl 4096] Endgame KQR-KQR. White is a pawn up.} Qd6 {[%emt 0:00:02]} 38. Rc4 {[%emt 0:02:12]} Qe5 {[%emt 0:01:52]} (38... Rf5 $142 39. Qa8 Rd5 40. Qxa5 h6 41. Qa7+ Qd7 42. Qxd7+ Kxd7) 39. Qb7+ {[%emt 0:01:42]} Kf8 {[%emt 0:00:06]} 40. Qa8+ {[%emt 0:00:05]} Kg7 {[%emt 0:00:36]} 41. Rg4+ {[%emt 0:11:23]} (41. Qxa5 Qd5 42. Rg4+ Kf8 $18) 41... Rg5 {[%emt 0:00:18]} 42. Qe4 $2 {[%emt 0:00:33]} (42. Qxa5 Rxg4 43. hxg4 Qxe2 $16) (42. Re4 $1 $18 {[%cal Re4e5]} Qd5 43. Qe8 (43. Qxa5 Qxb3 44. Qd8 h6 $18)) 42... Qa1+ $16 {[%emt 0:00:48]} 43. Kg2 {[%emt 0:00:06]} Rxg4 {[%emt 0:00:02]} 44. Qxg4+ {[%emt 0:00:08] KQ-KQ. White is a pawn up.} Kf8 {[%emt 0:00:03]} 45. Qc4 {[%emt 0:01:05]} Qe5 {[%emt 0:03:50]} 46. e3 {[%emt 0:01:37]} Qd5+ {[%emt 0:01:44]} 47. Kf1 {[%emt 0:00:07]} Qh5 {[%emt 0:01:02]} 48. Ke1 {[%emt 0:00:41]} Qe5 {[%emt 0:04:19]} 49. h4 {[%emt 0:00:34]} Kg8 {[%emt 0:01:40]} 50. Ke2 {[%emt 0:02:29]} Qb2+ {[%emt 0:02:54]} 51. Kf3 $1 {[%emt 0:00:06]} Qf6+ {[%emt 0:00:08]} 52. Kg2 {[%emt 0:00:59]} Qe5 {[%emt 0:00:03]} 53. Kf1 {[%emt 0:05:46]} (53. Qf4 $16 Qd5+ 54. Kg1) 53... Qh5 {[%emt 0:01:21]} (53... Qa1+ $11 {keeps the balance.} 54. Kg2 Qe5 55. Qg4+ Kf8) 54. Ke1 {[%emt 0:00:12]} Qe5 $1 {[%emt 0:00:48]} 55. d4 {[%emt 0:00:34]} cxd4 {[%emt 0:00:07]} 56. Qxd4 {[%emt 0:00:03]} Qf5 $2 {[%emt 0:01:41][%mdl 8192]} (56... Qc7 $16 57. Qd1 h6) 57. Qd8+ $18 {[%emt 0:03:55]} Kg7 {[%emt 0:00:20]} 58. Qg5+ {[%emt 0:00:52]} Qxg5 {[%emt 0:00:24]} 59. hxg5 {[%emt 0:00:04] KP-KP. White is a pawn up.} Kg6 {[%emt 0:00:06]} 60. Ke2 {[%emt 0:04:44] and Kd3 should not be overlooked} e5 {[%emt 0:06:00]} 61. Kd3 {[%emt 0:02:47]} Kf5 {[%emt 0:00:08]} 62. f4 {[%emt 0:03:15][%cal Bf2f4,Bf4f5][%mdl 32]} Kg4 {[%emt 0:00:47]} 63. Ke4 {[%emt 0:00:18]} (63. fxe5 $2 {too greedy.} Kxg3 64. Kc4 Kh4 $19) 63... Kxg3 {[%emt 0:00:34]} 64. Kxe5 {[%emt 0:00:09]} Kf3 {[%emt 0:00:12]} 65. Kd4 $1 {[%emt 0:00:24] Threatening mate with f5.} Ke2 {[%emt 0:02:36]} 66. e4 {[%emt 0:00:33]} Kf3 {[%emt 0:01:24] [#]} 67. f5 $1 {[%emt 0:00:19]} Kf4 {[%emt 0:00:44] [#]} 68. g6 $1 {[%emt 0:00:13][%mdl 512]} 1-0

[Event "Prague Open 2025"]
[Site "Prague"]
[Date "2025.01.15"]
[Round "7.12"]
[White "Mueer, Sebastian"]
[Black "Llopis de Aysa, Manuel"]
[Result "1-0"]
[Annotator "RC"]
[ECO "D35"]
[WhiteElo "2192"]
[BlackElo "2031"]
[PlyCount "157"]
[EventDate "2025.01.07"]
[EventType "swiss"]
[EventCountry "CZE"]
[SourceTitle "playchess.com"]
[Source "ChessBase"]
[SourceQuality "1"]
[TimeControl "40/5400+30:1800+30"]

1. d4 {[%emt 0:00:03]} Nf6 {[%emt 0:00:08]} 2. c4 {[%emt 0:00:17]} e6 {[%emt 0:00:07]} 3. Nc3 {[%emt 0:00:06]} d5 {[%emt 0:00:07]} 4. cxd5 {[%emt 0:00:06]} exd5 {[%emt 0:00:02]} 5. Bg5 {[%emt 0:00:11]} Be7 {[%emt 0:00:15]} 6. e3 {[%emt 0:00:07]} O-O {[%emt 0:00:12]} 7. Bd3 {[%emt 0:00:04]} h6 {[%emt 0:00:28]} 8. Bh4 {[%emt 0:00:08]} Re8 {[%emt 0:00:27]} 9. Nge2 {[%emt 0:00:52]} c6 {[%emt 0:00:55]} 10. Qc2 {[%emt 0:00:54]} Nh5 {[%emt 0:00:23]} 11. Bxe7 {[%emt 0:00:39]} Qxe7 {[%emt 0:00:10]} 12. O-O {[%emt 0:00:25]} Nd7 {[%emt 0:00:30]} 13. Rae1 {[%emt 0:00:44]} Nf8 {[%emt 0:01:08]} 14. Nc1 {[%emt 0:00:52]} Nf6 {[%emt 0:04:16]} 15. f3 {[%emt 0:05:28]} c5 {[%emt 0:26:23]} 16. dxc5 {[%emt 0:05:43]} Qxc5 {[%emt 0:00:15]} 17. Nb3 {[%emt 0:01:23]} Qb6 {[%emt 0:03:40]} 18. Qd2 {[%emt 0:07:21]} Ne6 {[%emt 0:06:54]} 19. Ne2 {[%emt 0:01:29]} Bd7 {[%emt 0:04:45]} 20. Nbd4 {[%emt 0:00:17]} Nxd4 {[%emt 0:05:15]} 21. Nxd4 {[%emt 0:00:10]} Nh7 {[%emt 0:00:39]} 22. Bxh7+ {[%emt 0:04:31]} Kxh7 {[%emt 0:00:02]} 23. Rc1 {[%emt 0:00:53]} Rac8 {[%emt 0:03:00]} 24. Rxc8 {[%emt 0:00:22]} Rxc8 {[%emt 0:00:19]} 25. Rc1 {[%emt 0:00:15]} Rxc1+ {[%emt 0:19:22]} 26. Qxc1 {[%emt 0:00:03]} Qd6 {[%emt 0:00:23]} 27. Qc2+ {[%emt 0:01:17]} g6 {[%emt 0:00:30]} 28. Qc3 {[%emt 0:00:12]} Bc6 {[%emt 0:09:15]} 29. Ne2 {[%emt 0:02:25]} a6 {[%emt 0:03:52]} 30. Nf4 {[%emt 0:03:52]} Kg8 {[%emt 0:03:52]} 31. Qd4 {[%emt 0:02:03]} h5 {[%emt 0:03:57]} 32. g3 {[%emt 0:05:07]} Qe7 {[%emt 0:00:01]} 33. Kf2 {[%emt 0:00:23]} Qg5 {[%emt 0:00:34]} 34. h4 {[%emt 0:00:17]} Qf5 {[%emt 0:00:41]} 35. Qd3 {[%emt 0:07:37]} Qe5 {[%emt 0:01:52]} 36. Qd2 {[%emt 0:05:40]} Kf8 {[%emt 0:00:49]} 37. a3 {[%emt 0:01:37]} Ke8 {[%emt 0:01:31]} 38. Ke2 {[%emt 0:01:55]} Ke7 {[%emt 0:01:08]} 39. Qb4+ {[%emt 0:01:32]} Ke8 {[%emt 0:00:47]} 40. Kd2 {[%emt 0:02:09]} Kd7 {[%emt 0:00:54]} 41. Qc3 {[%emt 0:31:12]} Qxc3+ {[%emt 0:10:40]} 42. Kxc3 {[%emt 0:00:00]} d4+ {[%emt 0:00:10]} 43. Kxd4 {[%emt 0:00:00]} Bxf3 {[%emt 0:00:16]} 44. e4 {[%emt 0:00:00]} Kd6 {[%emt 0:07:59]} 45. b4 {[%emt 0:00:00]} Bg4 {[%emt 0:00:53]} 46. Nd3 {[%emt 0:00:00]} Bc8 {[%emt 0:04:19]} 47. Ne5 {[%emt 0:00:00]} Be6 {[%emt 0:00:35]} 48. Nd3 {[%emt 0:00:00]} Bc8 {[%emt 0:00:08]} 49. a4 {[%emt 0:00:00]} b6 {[%emt 0:06:17]} 50. e5+ {[%emt 0:00:00]} Kc6 {[%emt 0:01:24]} 51. Nf4 {[%emt 0:00:00]} Bg4 {[%emt 0:01:25]} 52. Kc4 {[%emt 0:04:01]} b5+ {[%emt 0:00:35]} 53. axb5+ {[%emt 0:00:05]} axb5+ {[%emt 0:00:03]} 54. Kd4 {[%emt 0:00:11]} Bf5 {[%emt 0:01:50]} 55. Nd5 {[%emt 0:01:55]} Be6 {[%emt 0:00:13]} 56. Nc3 {[%emt 0:00:41]} Bc4 {[%emt 0:00:32]} 57. Nd1 {[%emt 0:00:58]} Bd5 {[%emt 0:01:02]} 58. Ke3 {[%emt 0:01:36]} Kd7 {[%emt 0:00:39]} 59. Kd4 {[%emt 0:01:35]} Kc6 {[%emt 0:00:02]} 60. Nf2 {[%emt 0:01:48]} Bb3 {[%emt 0:00:33]} 61. g4 {[%emt 0:00:16]} hxg4 {[%emt 0:00:32]} 62. Nxg4 {[%emt 0:00:01]} Be6 {[%emt 0:00:50]} 63. Nf2 {[%emt 0:00:21]} Bf5 {[%emt 0:00:21]} 64. Nd1 {[%emt 0:00:14]} Be6 {[%emt 0:00:36]} 65. Nc3 {[%emt 0:00:34]} Bc4 {[%emt 0:00:33]} 66. Ne4 {[%emt 0:00:23]} Bd5 {[%emt 0:00:33]} 67. Nf2 {[%emt 0:01:36]} Be6 {[%emt 0:00:09]} 68. Nd3 {[%emt 0:00:08]} Bf5 {[%emt 0:00:55]} 69. Nf4 {[%emt 0:00:11]} Bd7 {[%emt 0:00:24]} 70. e6 {[%emt 0:02:18]} Bxe6 {[%emt 0:00:31]} 71. Nxe6 {[%emt 0:00:01]} fxe6 {[%emt 0:00:02]} 72. Ke5 {[%emt 0:00:10]} Kd7 {[%emt 0:00:11]} 73. Kf6 {[%emt 0:00:04]} Kd6 {[%emt 0:00:26]} 74. Kxg6 {[%emt 0:00:13]} e5 {[%emt 0:00:21]} 75. Kf5 {[%emt 0:01:00]} Kd5 {[%emt 0:00:01]} 76. h5 {[%emt 0:00:09]} e4 {[%emt 0:00:12]} 77. Kf4 {[%emt 0:00:18]} Kd4 {[%emt 0:00:23]} 78. h6 {[%emt 0:00:05]} e3 {[%emt 0:00:06]} 79. h7 {[%emt 0:00:05]} 1-0

[Event "Prague Open 2025"]
[Site "Prague"]
[Date "2025.01.15"]
[Round "7.13"]
[White "Zhukovskyi, Oleksandr"]
[Black "Rindhiya V"]
[Result "1/2-1/2"]
[Annotator "TA"]
[ECO "C55"]
[WhiteElo "2162"]
[BlackElo "1999"]
[PlyCount "39"]
[EventDate "2025.01.07"]
[EventType "swiss"]
[EventCountry "CZE"]
[SourceTitle "playchess.com"]
[Source "ChessBase"]
[SourceQuality "1"]
[TimeControl "40/5400+30:1800+30"]

{[%evp 28,39,15,14,27,8,25,0,1,-8,-10,-17,-26,-10]} 1. e4 {[%emt 0:03:11]} e5 {[%emt 0:00:05]} 2. Nf3 {[%emt 0:00:05]} Nc6 {[%emt 0:00:03]} 3. d4 {[%emt 0:00:06]} exd4 {[%emt 0:00:04]} 4. Bc4 {[%emt 0:00:03]} Nf6 {[%emt 0:00:05]} 5. e5 {[%emt 0:00:06]} d5 {[%emt 0:00:05]} 6. Bb5 {[%emt 0:00:05]} Ne4 {[%emt 0:00:05]} 7. Nxd4 {[%emt 0:00:08]} Bd7 {[%emt 0:00:02]} 8. Bxc6 {[%emt 0:00:19]} bxc6 {[%emt 0:00:03]} 9. O-O {[%emt 0:00:14]} Bc5 {[%emt 0:00:10]} 10. f3 {[%emt 0:00:31]} Ng5 {[%emt 0:00:10]} 11. f4 {[%emt 0:00:36]} Ne4 {[%emt 0:00:09]} 12. Be3 {[%emt 0:01:53]} Bb6 {[%emt 0:00:21]} 13. Nd2 {[%emt 0:00:23]} Nxd2 {[%emt 0:00:05]} 14. Qxd2 {[%emt 0:00:08]} c5 {[%emt 0:00:54]} 15. Nf3 {[%emt 0:00:13]} Bf5 {[%emt 0:00:18]} 16. b3 h6 {[%emt 0:25:51]} 17. a4 {[%emt 0:29:20] a5 would now be deadly.} a5 {[%emt 0:01:00]} 18. c3 {[%emt 0:02:11]} O-O {[%emt 0:11:26]} 19. Qf2 {[%emt 0:04:08]} Qe7 {[%emt 0:00:54]} 20. h3 {[%emt 0:10:33]} 1/2-1/2

[Event "Prague Open 2025"]
[Site "Prague"]
[Date "2025.01.15"]
[Round "7.14"]
[White "Skodras, Marios Konstantinos"]
[Black "Moser, Axel"]
[Result "1/2-1/2"]
[Annotator "RC"]
[ECO "A04"]
[WhiteElo "2013"]
[BlackElo "2160"]
[PlyCount "81"]
[EventDate "2025.01.07"]
[EventType "swiss"]
[EventCountry "CZE"]
[SourceTitle "playchess.com"]
[Source "ChessBase"]
[SourceQuality "1"]
[TimeControl "40/5400+30:1800+30"]

1. Nf3 {[%emt 0:00:04]} c5 {[%emt 0:00:15]} 2. b3 {[%emt 0:00:15]} Nf6 {[%emt 0:00:39]} 3. Bb2 {[%emt 0:00:32]} e6 {[%emt 0:01:05]} 4. g3 {[%emt 0:03:20]} b6 {[%emt 0:00:27]} 5. Bg2 {[%emt 0:00:18]} Bb7 {[%emt 0:00:05]} 6. d3 {[%emt 0:00:47]} g6 {[%emt 0:01:57]} 7. O-O {[%emt 0:00:25]} Bg7 {[%emt 0:00:04]} 8. e4 {[%emt 0:02:52]} d6 {[%emt 0:02:11]} 9. Nbd2 {[%emt 0:02:10]} O-O {[%emt 0:01:38]} 10. a4 {[%emt 0:09:12]} e5 {[%emt 0:10:40]} 11. Nc4 {[%emt 0:05:38]} Nc6 {[%emt 0:01:49]} 12. Ne3 {[%emt 0:11:21]} Nd4 13. Nxd4 {[%emt 0:03:23]} cxd4 {[%emt 0:09:27]} 14. Nc4 {[%emt 0:00:22]} Qc7 {[%emt 0:18:18]} 15. f4 {[%emt 0:02:54]} exf4 {[%emt 0:02:10]} 16. gxf4 {[%emt 0:19:29]} d5 {[%emt 0:01:20]} 17. e5 {[%emt 0:00:40]} dxc4 {[%emt 0:00:32]} 18. exf6 {[%emt 0:00:08]} Bxf6 {[%emt 0:00:29]} 19. bxc4 {[%emt 0:00:18]} Bxg2 {[%emt 0:03:36]} 20. Kxg2 {[%emt 0:00:01]} Rfe8 {[%emt 0:00:38]} 21. Qf3 {[%emt 0:01:38]} Rad8 {[%emt 0:03:07]} 22. Bc1 {[%emt 0:08:39]} Qe7 {[%emt 0:08:14]} 23. Bd2 {[%emt 0:00:52]} Bh4 {[%emt 0:00:54]} 24. Rad1 {[%emt 0:11:01]} Qd7 {[%emt 0:06:39]} 25. a5 {[%emt 0:04:01]} Qf5 {[%emt 0:00:22]} 26. axb6 {[%emt 0:01:17]} axb6 {[%emt 0:00:04]} 27. Rb1 {[%emt 0:01:24]} Re6 {[%emt 0:00:06]} 28. Rb5 {[%emt 0:00:46]} Qf6 {[%emt 0:00:54]} 29. f5 {[%emt 0:04:07]} Rc6 {[%emt 0:05:57]} 30. Kh3 {[%emt 0:02:48]} g5 {[%emt 0:02:12]} 31. Qe2 {[%emt 0:02:21]} Rc5 {[%emt 0:02:20]} 32. Rxc5 {[%emt 0:01:24]} bxc5 {[%emt 0:00:05]} 33. Ba5 {[%emt 0:01:59]} Rc8 {[%emt 0:00:34]} 34. Qe4 {[%emt 0:00:31]} Kf8 {[%emt 0:01:35]} 35. Qd5 {[%emt 0:00:27]} h5 {[%emt 0:03:25]} 36. Be1 {[%emt 0:00:24]} g4+ {[%emt 0:01:15]} 37. Kg2 {[%emt 0:00:01]} Kg8 {[%emt 0:00:41]} 38. Bxh4 {[%emt 0:01:07]} Qxh4 {[%emt 0:00:03]} 39. Qe5 {[%emt 0:00:20]} Qh3+ 40. Kf2 Qf3+ 41. Ke1 1/2-1/2

[Event "Prague Open 2025"]
[Site "Prague"]
[Date "2025.01.15"]
[Round "7.15"]
[White "Verner, Matej"]
[Black "Mannion, Stephen R"]
[Result "0-1"]
[Annotator "TA"]
[ECO "C34"]
[WhiteElo "1948"]
[BlackElo "2159"]
[PlyCount "98"]
[EventDate "2025.01.07"]
[EventType "swiss"]
[EventCountry "CZE"]
[SourceTitle "playchess.com"]
[Source "ChessBase"]
[SourceQuality "1"]
[TimeControl "40/5400+30:1800+30"]

{[%evp 9,98,-49,-29,-32,-31,-26,-32,-30,-35,-28,-29,-29,-24,-31,-39,-62,-54,0,-27,-54,-51,-129,-106,-120,-129,-121,-104,-116,-49,-55,-54,-49,-21,-8,-6,-49,-32,-44,-46,-49,-52,-98,-104,-133,-125,-113,-47,-77,-63,-74,-90,-87,-8,-10,-8,-8,-14,-116,-93,-106,-106,-107,-97,-150,-170,-191,-243,-520,-582,-569,-623,-623,-591,-788,-850,-885,-836,-943,-700,-1119,-1027,-29979,-29980,-29979,-29980,-29982,-29982,-29978,-29983,-29983,-29984]} 1. e4 {[%emt 0:00:02]} e5 {[%emt 0:00:04]} 2. f4 {[%emt 0:00:00]} exf4 3. Nf3 d6 {[%emt 0:00:25]} 4. d4 {[%emt 0:00:04]} g5 {[%emt 0:00:24]} 5. Nc3 {[%emt 0:00:03]} Bg7 {[%emt 0:09:58]} (5... g4 $5) 6. g3 {[%emt 0:00:11]} Nc6 {[%emt 0:06:08]} 7. d5 {[%emt 0:00:55]} (7. gxf4 g4 8. Rg1 gxf3 $17) 7... Ne5 {[%emt 0:00:14]} 8. gxf4 {[%emt 0:00:19]} gxf4 {[%emt 0:00:23]} 9. Bxf4 {[%emt 0:00:26]} Bg4 $1 {[%emt 0:00:40]} 10. Bb5+ {[%emt 0:00:07]} Kf8 {[%emt 0:00:40]} 11. Be2 {[%emt 0:00:09][%cal Bb5e2,Be2f3,Bf3g4][%mdl 32]} Nxf3+ {[%emt 0:01:01]} 12. Bxf3 {[%emt 0:00:08]} Bxc3+ {[%emt 0:00:28]} 13. bxc3 {[%emt 0:00:11]} Qf6 $1 {[%emt 0:00:14][%csl LRc3,LRf4]} 14. Bxg4 {[%emt 0:28:47]} Qxf4 {[%emt 0:00:10]} 15. Qe2 {[%emt 0:00:56]} ({White should play} 15. Qf3 $1 $15 Qxf3 16. Bxf3) 15... Re8 {[%emt 0:26:57]} 16. Bf5 {[%emt 0:02:30]} Nh6 {[%emt 0:02:35] Black is more active.} 17. Rf1 {[%emt 0:01:27]} Qh4+ {[%emt 0:12:33]} 18. Kd2 {[%emt 0:00:43]} Nxf5 {[%emt 0:11:25]} (18... Rg8 $1 $17 {[%cal Rg8g5] and ...Rg5 should not be overlooked} 19. Rae1 Qg5+ 20. Qe3 Qxe3+ 21. Kxe3 Rg2) 19. Rxf5 $15 {[%emt 0:00:09]} Rxe4 {[%emt 0:00:27]} 20. Qf3 $1 {[%emt 0:01:00]} Qh6+ {[%emt 0:16:55]} (20... Qxh2+ 21. Kd3 Re5 (21... Re7 $2 22. Rh5 $18) 22. Rxf7+ Ke8 23. Rxc7 $18 (23. Rh1 Qxh1 24. Qxh1 Kxf7 $17)) 21. Kd3 $1 {[%emt 0:00:12][%cal Bd2d3,Bd3c4,Bc4b5,Bb5c6][%mdl 32]} Re7 {[%emt 0:00:48][%cal Oh6g6]} 22. Rb1 {[%emt 0:05:54]} b6 {[%emt 0:00:34][%cal Oh8g8]} 23. Rf1 {[%emt 0:00:05] Hoping for Rf6.} Qg6 {[%emt 0:01:36]} 24. Kc4 {[%emt 0:01:02]} Rg8 {[%emt 0:00:11]} 25. Rf6 {[%emt 0:18:47]} (25. Qd3 $15 {might be stronger.}) 25... Qg4+ $17 {[%emt 0:00:27]} (25... Qxc2 $2 26. Rxf7+ Ke8 27. Rxe7+ Kd8 28. Kb5 $18) 26. Qxg4 {[%emt 0:00:07]} Rxg4+ {[%emt 0:00:02][%mdl 4096] Endgame KRR-KRR. Black is a pawn up.} 27. Kb5 {[%emt 0:00:03]} a5 {[%emt 0:01:36]} (27... Rg2 $17 28. R6f2 Rxf2 29. Rxf2 Re3) 28. c4 {[%emt 0:04:47]} Rg2 {[%emt 0:01:02][%csl LRc2,LRh2]} 29. R1f2 {[%emt 0:00:10]} Rxf2 {[%emt 0:01:45]} 30. Rxf2 {[%emt 0:00:01][%cal Oc4c5] KR-KR. Black is a pawn up.} Re4 {[%emt 0:00:18]} (30... Kg7 $17) 31. c5 $11 {[%emt 0:03:20]} dxc5 {[%emt 0:02:04]} 32. Kc6 {[%emt 0:00:07]} Re7 {[%emt 0:01:28]} 33. d6 {[%emt 0:00:05]} (33. a3 $11 {remains equal.}) 33... cxd6 $17 {[%emt 0:00:11]} 34. Kxb6 {[%emt 0:00:01]} Re4 {[%emt 0:00:46]} 35. Kxa5 {[%emt 0:00:33] [#]} Rb4 $1 {[%emt 0:00:22]} 36. a3 {[%emt 0:01:01] [#]} (36. Re2 $142) 36... Rb2 $1 {[%emt 0:00:11]} 37. a4 {[%emt 0:00:11]} Ke7 {[%emt 0:00:30]} 38. Ka6 $2 {[%emt 0:00:41]} (38. Re2+ Kf6 39. Rf2+ Ke7 40. Re2+) 38... d5 $19 {[%emt 0:00:30]} 39. a5 {[%emt 0:01:49]} d4 {[%emt 0:00:05]} 40. Rd2 {[%emt 0:01:11]} Kd6 {[%emt 0:01:58]} 41. Ka7 {[%emt 0:32:14]} f5 {[%emt 0:09:38]} 42. a6 {[%emt 0:00:00]} f4 {[%emt 0:00:17]} 43. Ka8 {[%emt 0:00:00]} Ke5 {[%emt 0:07:53]} 44. a7 {[%emt 0:00:00]} f3 {[%emt 0:01:38]} 45. h4 {[%emt 0:00:00]} Kf4 {[%emt 0:04:01]} 46. h5 {[%emt 0:00:00]} Ke3 {[%emt 0:00:37]} 47. Rd3+ {[%emt 0:00:00]} Ke2 {[%emt 0:00:19]} 48. h6 {[%emt 0:00:00]} f2 {[%emt 0:00:14]} 49. c4 {[%emt 0:00:00]} Ra2 {[%emt 0:01:09]} ({Weaker is} 49... f1=R 50. Re3+ Kd2 51. Rd3+ Ke2 52. Re3+ Kd2 53. Rd3+ Ke1 54. Rd1+ Kf2 55. Rxf1+ Kxf1 $11) 0-1

[Event "Prague Open 2025"]
[Site "Prague"]
[Date "2025.01.15"]
[Round "7.16"]
[White "Mrazek, Adam"]
[Black "Fizer, Marek"]
[Result "*"]
[Annotator "RC"]
[WhiteElo "1919"]
[BlackElo "2155"]
[PlyCount "24"]
[EventDate "2025.01.07"]
[EventType "swiss"]
[EventCountry "CZE"]
[SourceTitle "playchess.com"]
[Source "ChessBase"]
[SourceQuality "1"]
[TimeControl "40/5400+30:1800+30"]

1. c4 {[%emt 0:00:02]} c5 {[%emt 0:02:32]} 2. g3 {[%emt 0:00:28]} g6 {[%emt 0:00:39]} 3. Bg2 {[%emt 0:00:17]} Bg7 {[%emt 0:00:15]} 4. Nc3 {[%emt 0:00:08]} Nc6 {[%emt 0:00:27]} 5. a3 {[%emt 0:00:33]} d6 {[%emt 0:02:24]} 6. Nf3 {[%emt 0:00:36]} Bf5 {[%emt 0:01:36]} 7. O-O {[%emt 0:03:50]} Qc8 {[%emt 0:01:14]} 8. Re1 {[%emt 0:04:31]} Bh3 {[%emt 0:01:43]} 9. Bh1 {[%emt 0:00:13]} h5 {[%emt 0:01:43]} 10. Rb1 {[%emt 0:00:53]} h4 {[%emt 0:04:46]} 11. b4 {[%emt 0:03:13]} hxg3 {[%emt 0:03:40]} 12. hxg3 {[%emt 0:00:25]} Qf5 {[%emt 0:07:42]} *

[Event "Prague Open 2025"]
[Site "Prague"]
[Date "2025.01.15"]
[Round "7.16"]
[White "Mrazek, Adam"]
[Black "Fizer, Marek"]
[Result "0-1"]
[Annotator "RC"]
[ECO "A36"]
[WhiteElo "1919"]
[BlackElo "2155"]
[PlyCount "90"]
[EventDate "2025.01.07"]
[EventType "swiss"]
[EventCountry "CZE"]
[SourceTitle "playchess.com"]
[Source "ChessBase"]
[SourceQuality "1"]
[TimeControl "40/5400+30:1800+30"]

1. c4 {[%emt 0:00:02]} c5 {[%emt 0:02:32]} 2. g3 {[%emt 0:00:28]} g6 {[%emt 0:00:39]} 3. Bg2 {[%emt 0:00:17]} Bg7 {[%emt 0:00:15]} 4. Nc3 {[%emt 0:00:08]} Nc6 {[%emt 0:00:27]} 5. a3 {[%emt 0:00:33]} d6 {[%emt 0:02:24]} 6. Nf3 {[%emt 0:00:36]} Bf5 {[%emt 0:01:36]} 7. O-O {[%emt 0:03:50]} Qc8 {[%emt 0:01:14]} 8. Re1 {[%emt 0:04:31]} Bh3 {[%emt 0:01:43]} 9. Bh1 {[%emt 0:00:13]} h5 {[%emt 0:01:43]} 10. Rb1 {[%emt 0:00:53]} h4 {[%emt 0:04:46]} 11. b4 {[%emt 0:03:13]} hxg3 {[%emt 0:03:40]} 12. hxg3 {[%emt 0:00:25]} Qf5 {[%emt 0:07:42]} 13. e4 {[%emt 0:58:44]} Qh5 {[%emt 0:04:37]} 14. Nd5 {[%emt 0:01:44]} Bg4 {[%emt 0:05:17]} 15. Bg2 {[%emt 0:00:51]} Nd4 {[%emt 0:03:44]} 16. Re3 {[%emt 0:11:43]} Bxf3 {[%emt 0:27:33]} 17. Bxf3 {[%emt 0:04:49]} Qh2+ {[%emt 0:00:10]} 18. Kf1 {[%emt 0:00:01]} Qh1+ {[%emt 0:03:54]} 19. Bxh1 {[%emt 0:00:02]} Rxh1+ {[%emt 0:00:06]} 20. Kg2 {[%emt 0:00:01]} Rxd1 {[%emt 0:00:08]} 21. Nc7+ {[%emt 0:00:23]} Kd8 {[%emt 0:00:39]} 22. Nxa8 {[%emt 0:00:19]} Kc8 {[%emt 0:01:50]} 23. f4 {[%emt 0:06:34]} Nf6 {[%emt 0:00:49]} 24. e5 {[%emt 0:01:29]} Ng4 {[%emt 0:04:31]} 25. Re4 {[%emt 0:00:01]} f5 {[%emt 0:00:33]} 26. exf6 {[%emt 0:00:01]} Bxf6 {[%emt 0:00:06]} 27. d3 {[%emt 0:01:36]} Kb8 {[%emt 0:00:32]} 28. bxc5 {[%emt 0:00:31]} dxc5 {[%emt 0:00:09]} 29. f5 {[%emt 0:00:19]} Ne5 {[%emt 0:08:51]} 30. Bf4 {[%emt 0:00:23]} Rxb1 {[%emt 0:00:14]} 31. Bxe5+ {[%emt 0:00:03]} Bxe5 {[%emt 0:01:22]} 32. Rxe5 {[%emt 0:00:04]} Nxf5 {[%emt 0:00:48]} 33. g4 {[%emt 0:01:18]} Nd6 {[%emt 0:01:05]} 34. Rxe7 {[%emt 0:00:52]} Kxa8 {[%emt 0:00:03]} 35. Rd7 {[%emt 0:00:29]} Nc8 {[%emt 0:00:11]} 36. Rc7 {[%emt 0:00:32]} Kb8 {[%emt 0:00:16]} 37. Rxc5 {[%emt 0:00:01]} Rb3 {[%emt 0:00:16]} 38. d4 {[%emt 0:00:59]} Rd3 {[%emt 0:00:46]} 39. Rd5 {[%emt 0:00:31]} Kc7 {[%emt 0:00:47]} 40. a4 {[%emt 0:00:28]} Ne7 {[%emt 0:00:56]} 41. Rc5+ {[%emt 0:03:11]} Kd6 {[%emt 0:03:45]} 42. Rb5 {[%emt 0:00:45]} Rxd4 {[%emt 0:00:42]} 43. Rxb7 {[%emt 0:00:09]} Nc6 {[%emt 0:00:17]} 44. Rg7 {[%emt 0:03:44]} Rxg4+ {[%emt 0:00:14]} 45. Kh3 {[%emt 0:00:05]} Rg1 {[%emt 0:00:26]} 0-1